bitfinex/quotes_ETHUSD_20250801
["timestamp","ask_amount","ask_price","bid_price","bid_amount"]
[1754087241625,2.85453299,3503.2,3501.5,0.29028653]
[1754087241828,2.85469597,3503.0,3501.6,0.44]
[1754087242041,0.9736,3503.1,3501.9,2.85556266]
[1754087242042,0.02858629,3502.9,3501.9,2.85556266]
[1754087242225,0.1424,3502.3,3501.7,0.1424]
[1754087242451,0.49074,3503.2,3501.4,0.4637]
[1754087242452,0.49074,3503.2,3502.2,2.85534806]
[1754087242670,0.1424,3502.4,3502.0,2.85545847]
[1754087242970,0.6421,3502.4,3501.9,0.1424]
[1754087243469,0.6421,3502.4,3501.5,2.85590683]
[1754087243470,4.766,3502.3,3501.5,2.85590683]
[1754087243641,4.766,3502.3,3501.5,2.85584493]
[1754087243841,0.1424,3501.8,3501.4,0.004]
[1754087244271,4.79458629,3501.7,3501.4,0.004]
[1754087244441,4.766,3501.6,3501.4,0.004]
[1754087244646,5.7396,3501.6,3501.4,0.004]
[1754087244855,1.3592412,3501.5,3501.4,0.004]
[1754087245257,1.3334412,3501.5,3501.4,0.004]
[1754087245472,4.68906009,3501.5,3501.4,0.004]
[1754087245636,5.23906009,3501.5,3501.4,0.004]
[1754087245836,9.45906009,3501.5,3501.4,0.004]
[1754087246266,9.46206009,3501.5,3501.4,0.004]
[1754087246688,9.46006009,3501.5,3501.4,0.004]
[1754087247182,2.85600045,3501.4,3499.3,0.44]
[1754087247335,2.85687515,3500.4,3499.3,0.44]
[1754087247687,4.77,3500.3,3499.7,2.85737923]
[1754087248046,4.77,3500.3,3499.8,2.85730131]
[1754087248370,0.4997,3500.6,3499.3,0.44]
[1754087248371,4.769,3500.2,3499.5,2.85750896]
[1754087248535,4.769,3500.2,3499.3,0.44]
[1754087248737,4.769,3500.2,3499.4,2.85763273]
[1754087248931,3.4739,3500.9,3499.5,0.02857551]
[1754087249180,2.85681636,3500.4,3498.8,0.44]
[1754087249383,2.85681636,3500.4,3497.9,12.85064594]
[1754087249384,2.85811232,3498.9,3498.2,0.44]
[1754087249567,4.773,3498.8,3498.2,0.44]
[1754087249737,4.773,3498.8,3497.3,9.39878118]
[1754087249738,4.774,3498.8,3497.6,0.44]
[1754087249935,0.02858629,3498.7,3497.6,0.44]
[1754087250259,0.02858629,3498.7,3497.3,0.22877064]
[1754087250260,0.9736,3498.6,3497.3,0.22877064]
[1754087250490,1.00218629,3498.5,3497.3,0.22877064]
[1754087250674,2.85926688,3497.4,3497.3,0.22877064]
[1754087250833,5.2737,3497.4,3497.3,0.22877064]
[1754087251037,5.77618629,3497.4,3497.3,0.22877064]
[1754087251239,5.7476,3497.4,3497.3,0.22877064]
[1754087251845,8.60686688,3497.4,3497.3,0.22877064]
[1754087252156,5.7476,3497.4,3497.3,0.22877064]
[1754087252751,6.60826292,3497.4,3497.3,0.22877064]
[1754087253446,0.4997,3497.4,3497.3,0.22877064]
[1754087253646,0.4997,3497.9,3497.3,0.22877064]
[1754087253876,7.63196435,3497.8,3497.3,0.22877064]
[1754087254057,2.85916971,3497.6,3497.3,0.22877064]
[1754087254285,3.00246688,3497.4,3497.3,0.22877064]
[1754087254489,3.00246688,3497.4,3496.0,5.0]
[1754087254490,2.85934864,3497.3,3496.0,5.0]
[1754087254716,2.85959393,3497.0,3496.0,5.0]
[1754087254877,2.85994442,3496.6,3496.0,5.0]
[1754087255078,5.2757,3496.5,3496.0,5.0]
[1754087255417,0.4997,3496.4,3496.0,5.0]
[1754087255619,0.1432,3496.1,3496.0,5.0]
[1754087256117,0.4997,3496.4,3496.0,5.0]
[1754087256518,6.865,3496.8,3496.0,5.0]
[1754087256519,4.776,3496.3,3496.0,5.44]
[1754087256679,4.774,3496.2,3496.1,0.44]
[1754087256879,6.865,3496.8,3496.3,2.86013107]
[1754087257075,4.773,3496.7,3496.1,2.86027288]
[1754087257280,4.773,3496.7,3496.0,5.4597]
[1754087257481,4.773,3496.7,3496.1,2.86033008]
[1754087257715,4.778,3496.6,3496.2,0.44]
[1754087258105,4.778,3496.6,3496.1,0.0286033]
[1754087258334,4.778,3496.6,3496.0,5.0]
[1754087258748,4.80958629,3496.5,3496.0,7.86040813]
[1754087259037,6.865,3496.8,3496.1,0.44]
[1754087259196,4.792,3496.7,3496.1,0.44]
[1754087259538,4.796,3496.6,3496.0,5.0]
[1754087259894,0.52828629,3496.5,3496.0,5.0]
[1754087260224,2.86033008,3496.1,3496.0,5.0]
[1754087260395,8.63693008,3496.1,3496.0,5.0]
[1754087261011,5.7766,3496.1,3496.0,5.0]
[1754087261337,8.63693008,3496.1,3496.0,5.0]
[1754087261537,2.86082105,3495.5,3493.2,2.86262766]
[1754087261698,2.86098636,3495.3,3493.8,2.86213749]
[1754087261897,0.55,3495.1,3493.6,2.86235162]
[1754087262099,0.9736,3495.0,3493.1,0.004]
[1754087262297,2.86204922,3494.0,3493.4,0.02831608]
[1754087262539,8.72164922,3494.0,3493.4,0.01397]
[1754087262835,2.86245885,3493.5,3493.4,0.01397]
[1754087263035,2.86245885,3493.5,3493.1,0.004]
[1754087263036,2.86270468,3493.2,3493.1,0.004]
[1754087263243,2.86270468,3493.2,3492.2,0.004]
[1754087263244,2.86297087,3492.9,3492.2,0.004]
[1754087263465,2.86344243,3492.3,3492.2,0.004]
[1754087263602,2.86344243,3492.3,3489.0,0.677]
[1754087263603,4.944,3492.3,3489.0,0.677]
[1754087263933,0.03578893,3492.7,3489.5,0.14899957]
[1754087263934,6.04939405,3492.2,3489.5,0.14899957]
[1754087264142,2.86368843,3492.0,3489.6,0.01441826]
[1754087264343,0.55,3491.8,3489.9,0.44]
[1754087264494,2.86442668,3491.1,3489.0,0.677]
[1754087264700,2.86491906,3490.5,3487.8,4.25432437]
[1754087264957,1.92697386,3490.4,3487.8,4.25432437]
[1754087265103,1.92697386,3490.4,3487.8,4.69432437]
[1754087265104,0.9736,3490.3,3487.8,4.69432437]
[1754087265299,6.2096,3490.2,3487.8,4.69432437]
[1754087265553,4.00941559,3490.1,3487.8,4.25432437]
[1754087265760,2.267,3489.9,3487.8,4.25432437]
[1754087265901,0.1432,3487.9,3487.8,4.25432437]
[1754087266100,5.333,3487.9,3487.8,4.25432437]
[1754087266328,5.8178,3487.9,3487.8,4.25432437]
[1754087266529,5.8178,3487.9,3483.4,2.87075548]
[1754087266749,6.872,3488.5,3484.8,3.30658453]
[1754087266750,0.55,3487.7,3484.8,3.30658453]
[1754087266939,6.872,3488.5,3484.9,0.01451074]
[1754087266940,3.0,3487.5,3484.9,0.01451074]
[1754087267124,5.9018,3487.6,3484.0,0.437]
[1754087267125,0.55,3487.1,3484.0,0.437]
[1754087267326,5.95364743,3487.0,3485.4,1.37879483]
[1754087267498,0.91375011,3488.0,3485.5,1.10397948]
[1754087267697,0.4848,3488.4,3485.6,3.80144025]
[1754087267954,5.458,3488.7,3487.7,2.86719412]
[1754087268158,5.49383099,3488.6,3487.1,0.437]
[1754087268302,5.49383099,3488.6,3488.3,2.86671912]
[1754087268303,0.4848,3488.6,3488.3,2.86671912]
[1754087268505,0.4848,3490.0,3488.4,0.918]
[1754087268727,0.4848,3490.0,3488.0,2.86692604]
[1754087268728,5.9788,3489.9,3488.2,0.437]
[1754087268926,0.03181867,3489.8,3487.7,0.437]
[1754087269130,0.8281,3489.7,3487.3,3.0]
[1754087269313,7.81874211,3491.1,3488.0,2.86697247]
[1754087269531,0.97381254,3491.9,3488.1,0.918]
[1754087269532,0.4848,3490.0,3488.1,0.918]
[1754087269716,2.86569903,3489.6,3488.3,2.86672311]
[1754087269919,2.86569903,3489.6,3488.0,3.3479313]
[1754087269920,2.8664021,3488.7,3487.6,0.437]
[1754087270232,13.1982712,3488.6,3487.2,2.86763019]
[1754087270434,0.4848,3488.5,3487.7,2.86719989]
[1754087270653,5.54483304,3488.4,3486.4,3.0]
[1754087270946,6.79658,3488.4,3487.3,2.86752114]
[1754087271141,6.79658,3488.4,3486.6,0.481]
[1754087271142,0.03583407,3488.3,3487.6,2.86728922]
[1754087271307,0.03583407,3488.3,3486.6,0.481]
[1754087271508,1.28758,3488.4,3486.8,3.0]
[1754087271803,1.28758,3488.4,3486.7,2.8679994]
[1754087271804,5.54283407,3488.3,3486.9,0.481]
[1754087272012,5.9918,3488.3,3487.1,2.8676843]
[1754087272233,5.507,3488.3,3486.2,3.0]
[1754087272444,0.59918,3488.2,3487.0,2.86779466]
[1754087272649,0.52063612,3488.1,3486.5,0.437]
[1754087272912,0.89393612,3488.1,3486.5,0.437]
[1754087273556,6.881,3488.6,3486.5,0.437]
[1754087273557,6.881,3488.6,3486.6,0.49949323]
[1754087273762,0.6881,3488.5,3486.7,0.437]
[1754087273974,5.508,3488.4,3486.7,0.437]
[1754087274146,0.52063407,3488.3,3486.0,0.437]
[1754087274344,0.55,3487.5,3486.1,2.86852143]
[1754087274661,6.0008,3487.4,3486.0,0.437]
[1754087274972,2.86796068,3486.8,3485.4,1.37879483]
[1754087275120,2.86821497,3486.5,3485.4,0.94179483]
[1754087275465,0.8939536,3486.4,3485.4,0.94179483]
[1754087275827,3.90318947,3486.3,3485.4,0.94179483]
[1754087276132,0.95188996,3486.2,3485.4,0.94179483]
[1754087276342,0.1432,3485.5,3484.3,2.86997587]
[1754087276543,0.1432,3484.4,3484.3,2.87001693]
[1754087276870,0.1432,3484.4,3483.7,1.24775958]
[1754087276871,0.4848,3484.4,3483.7,1.24775958]
[1754087277224,0.03586903,3484.9,3483.7,1.24775958]
[1754087277427,1.24775958,3483.6,3481.9,0.86239]
[1754087277650,0.43054509,3485.0,3481.9,0.86239]
[1754087277651,5.772,3483.5,3481.9,0.86239]
[1754087277873,7.81874211,3486.3,3481.9,0.86239]
[1754087277874,0.1492494,3484.8,3482.0,0.01859168]
[1754087278083,0.1492494,3484.8,3482.9,7.81874211]
[1754087278221,0.03586388,3485.4,3483.2,7.81874211]
[1754087278421,0.4848,3484.9,3483.8,3.0]
[1754087278671,1.02728286,3486.2,3486.1,2.86853503]
[1754087278987,0.03584434,3487.3,3486.1,0.918]
[1754087279274,0.928,3487.8,3485.8,0.437]
[1754087279421,5.836,3487.9,3485.8,0.437]
[1754087279422,0.03584126,3487.6,3485.8,0.437]
[1754087279622,0.03584126,3487.6,3485.2,3.0]
[1754087279623,0.928,3487.5,3485.2,0.437]
[1754087279857,0.96384332,3487.4,3485.2,2.86925052]
[1754087280183,3.0,3486.6,3484.1,0.437]
[1754087280343,0.55,3486.2,3484.2,0.437]
[1754087280555,0.52065668,3486.1,3484.3,0.481]
[1754087280756,0.52065668,3486.1,3484.2,0.437]
[1754087280757,6.50246567,3486.0,3484.2,0.437]
[1754087280961,6.03636291,3487.3,3486.3,2.86831975]
[1754087281173,6.03636291,3487.3,3483.7,3.0]
[1754087281174,6.03636291,3487.3,3485.0,2.86943511]
[1754087281354,2.86771242,3487.1,3485.3,0.437]
[1754087281558,0.96384743,3487.0,3483.7,0.55]
[1754087281888,0.96384743,3487.0,3482.1,0.1]
[1754087281889,0.55,3486.8,3483.8,0.918]
[1754087282054,2.86837805,3486.3,3483.9,0.01853704]
[1754087282253,6.43665565,3486.2,3484.5,2.86977543]
[1754087282584,5.914,3486.1,3484.6,0.437]
[1754087282789,9.59496753,3486.1,3484.8,2.86960166]
[1754087282942,7.00915446,3486.0,3485.1,2.86934701]
[1754087283284,7.45809675,3486.0,3484.2,0.01853161]
[1754087283583,3.71670989,3485.9,3484.5,0.437]
[1754087283786,3.68085115,3485.9,3483.7,0.01853963]
[1754087283943,2.04548066,3485.8,3483.0,0.45554574]
[1754087284317,11.11496286,3485.7,3483.1,3.35194756]
[1754087284588,9.73398947,3485.6,3483.5,2.87063549]
[1754087284780,9.73398947,3485.6,3483.2,2.87092328]
[1754087284781,2.86995011,3484.4,3483.2,2.87092328]
[1754087284956,2.86995011,3484.4,3483.0,0.437]
[1754087284957,0.03587521,3484.3,3483.0,0.437]
[1754087285161,0.03587521,3484.3,3483.1,0.481]
[1754087285358,0.68164273,3484.3,3483.4,2.87074571]
[1754087285594,0.64576752,3484.3,3483.3,2.87083578]
[1754087285777,0.64576752,3484.3,3483.1,0.481]
[1754087286098,0.64576752,3484.3,3483.0,0.437]
[1754087286412,0.70675675,3484.2,3483.0,0.437]
[1754087286560,0.03587727,3484.1,3483.0,0.437]
[1754087286762,0.1432,3483.5,3483.0,0.1432]
[1754087287087,0.1432,3483.1,3482.5,0.1432]
[1754087287404,0.1432,3482.6,3481.9,0.5802]
[1754087287602,6.85,3482.5,3480.7,0.5]
[1754087287772,0.03589478,3482.4,3480.7,0.5]
[1754087288105,0.4848,3482.3,3480.5,0.45561247]
[1754087288302,6.82010411,3482.2,3480.6,0.481]
[1754087288464,0.144,3481.0,3480.6,0.481]
[1754087288660,0.144,3481.5,3481.4,2.87240765]
[1754087288875,0.144,3481.4,3480.7,0.625]
[1754087289161,0.144,3481.5,3481.4,2.87240765]
[1754087289483,0.35227032,3482.1,3480.8,3.0]
[1754087289685,0.144,3481.3,3479.7,0.42845984]
[1754087290004,0.144,3481.3,3480.4,2.8731664]
[1754087290005,6.08390715,3481.2,3480.4,2.8731664]
[1754087290166,6.048,3481.2,3480.9,2.87278323]
[1754087290363,0.144,3481.3,3481.1,2.87265506]
[1754087290698,0.928,3481.2,3479.7,0.28445984]
[1754087290898,2.8727491,3481.0,3479.7,0.28445984]
[1754087291101,0.144,3480.1,3479.7,0.28445984]
[1754087291404,0.4848,3480.1,3479.7,0.28445984]
[1754087291715,0.928,3480.1,3479.7,0.28445984]
[1754087292066,0.4848,3480.1,3479.7,0.28445984]
[1754087292389,6.067,3480.2,3479.7,0.28445984]
[1754087292584,6.067,3480.2,3479.7,3.28445984]
[1754087292802,0.4848,3481.2,3480.0,4.0]
[1754087292973,6.077,3481.6,3480.1,3.31048064]
[1754087293172,6.077,3481.6,3480.2,3.437]
[1754087293374,6.077,3481.6,3480.3,2.87331551]
[1754087293588,6.73318,3481.6,3480.0,1.0]
[1754087293800,0.928,3481.5,3480.0,1.0]
[1754087293966,3.35720765,3481.4,3480.0,1.0]
[1754087294167,0.4848,3481.3,3480.5,2.87309805]
[1754087294500,1.28682412,3481.3,3480.1,2.87348064]
[1754087294709,1.28682412,3481.3,3480.0,1.0]
[1754087294710,0.928,3481.2,3480.0,1.0]
[1754087294915,7.026,3481.1,3480.0,1.0]
[1754087295082,1.74671174,3481.0,3480.0,1.0]
[1754087295262,0.4848,3480.9,3480.0,3.87354115]
[1754087295596,0.4808,3480.9,3480.0,1.0]
[1754087295797,6.098,3481.1,3480.7,2.87295847]
[1754087295997,6.098,3481.1,3480.1,3.35236659]
[1754087296206,6.114,3481.9,3480.2,0.77868666]
[1754087296509,0.4564,3481.6,3480.0,1.0]
[1754087296718,2.8727961,3481.0,3480.0,1.0]
[1754087296885,6.15291025,3480.9,3480.0,1.0]
[1754087297087,0.49231128,3480.8,3480.0,1.0]
[1754087297478,0.4564,3481.3,3480.0,1.0]
[1754087297795,0.4962,3482.0,3480.1,0.9134]
[1754087297982,0.49229993,3481.9,3480.1,0.9134]
[1754087298186,0.49229993,3481.9,3480.0,1.0]
[1754087298187,0.4962,3481.8,3480.0,1.0]
[1754087298372,2.87348064,3480.1,3480.0,1.0]
[1754087298714,2.87372837,3479.8,3479.6,1e-08]
[1754087298896,2.87362718,3480.0,3478.3,4.41930512]
[1754087298897,2.87463707,3478.7,3478.3,4.41930512]
[1754087299074,13.08093296,3478.7,3478.3,4.41930512]
[1754087299270,2.87540732,3477.8,3474.4,2.87811438]
[1754087299469,32.8756989,3477.5,3476.0,2.87679977]
[1754087299673,2.87595985,3477.1,3475.0,3.4]
[1754087299910,6.93794949,3477.1,3475.8,2.87701839]
[1754087300109,6.902,3477.1,3475.8,2.87702826]
[1754087300310,6.902,3477.1,3475.5,5.4345]
[1754087300482,6.902,3477.1,3475.9,0.4345]
[1754087300683,6.902,3477.1,3476.6,2.87636041]
[1754087300886,6.135,3477.0,3475.5,5.0]
[1754087301085,0.03595156,3476.9,3475.6,0.4789]
[1754087301310,0.03595156,3476.9,3475.5,5.0]
[1754087301508,0.144,3475.6,3475.5,5.0]
[1754087302211,0.03595363,3476.7,3475.9,2.87687387]
[1754087302422,0.03595363,3476.7,3475.5,5.9134]
[1754087302423,0.03595363,3476.7,3475.5,5.4345]
[1754087302626,6.63,3477.0,3475.5,5.0]
[1754087302914,6.63,3477.0,3475.6,1.4134]
[1754087303218,6.643,3477.4,3475.7,0.4789]
[1754087303572,0.03594743,3477.3,3475.7,0.4789]
[1754087303787,0.55,3477.0,3475.8,2.87700876]
[1754087303988,0.43354755,3476.9,3475.5,5.0]
[1754087304212,0.55,3476.8,3476.0,2.87686858]
[1754087304421,0.55,3476.8,3475.5,5.0]
[1754087304422,0.03595363,3476.7,3476.3,3.0]
[1754087304627,6.828,3478.3,3476.6,3.0]
[1754087304797,6.906,3479.6,3476.7,0.9134]
[1754087305126,6.906,3479.6,3476.8,0.9134]
[1754087305127,6.828,3479.4,3476.8,0.9134]
[1754087305325,9.7020721,3479.4,3476.9,3.35498866]
[1754087305477,0.03592986,3479.0,3477.0,2.87604256]
[1754087305679,0.03592986,3479.0,3476.9,0.9134]
[1754087305915,0.58592986,3479.0,3476.9,0.4789]
[1754087306079,0.55,3478.7,3476.9,0.4789]
[1754087306281,0.864025,3479.1,3476.9,0.9134]
[1754087306477,4.09812246,3479.0,3476.9,0.9134]
[1754087306718,4.09812246,3479.0,3476.3,2.87654205]
[1754087306719,0.03593089,3478.9,3477.0,0.9134]
[1754087307020,0.03593089,3478.9,3477.2,2.87587714]
[1754087307219,7.69298,3479.4,3477.1,3.78927895]
[1754087307433,6.906,3479.6,3477.6,2.87554635]
[1754087307639,6.906,3479.6,3478.7,2.87456473]
[1754087307917,0.0359247,3479.5,3478.7,0.4789]
[1754087308215,6.906,3479.6,3476.7,6.851]
[1754087308216,2.63611717,3479.6,3476.7,6.851]
[1754087308420,0.57468599,3480.0,3477.5,0.55]
[1754087308602,9.71582659,3480.9,3478.1,3.0]
[1754087308802,0.01727553,3480.6,3478.3,2.87496765]
[1754087309023,6.843,3480.9,3479.9,2.87362283]
[1754087309224,6.843,3480.9,3478.8,3.0]
[1754087309378,1.67964172,3480.8,3478.4,9.843]
[1754087309580,3.73536422,3481.9,3478.4,9.843]
[1754087309581,0.4789,3482.3,3478.7,3.0]
[1754087309881,6.85527553,3482.0,3479.4,3.0]
[1754087310081,6.908,3482.4,3479.7,3.0]
[1754087310313,0.70807553,3482.3,3479.9,2.87364579]
[1754087310517,6.832,3483.1,3480.0,0.9134]
[1754087310518,2.87192272,3482.0,3480.0,0.9134]
[1754087310720,6.829,3482.0,3480.1,0.9134]
[1754087310894,6.62739228,3485.9,3480.4,0.55]
[1754087311094,2.86867831,3486.0,3484.1,2.87011036]
[1754087311326,0.4789,3486.2,3484.2,0.9134]
[1754087311327,0.01727553,3485.9,3484.2,0.9134]
[1754087311635,2.86961928,3484.8,3483.6,0.4345]
[1754087311786,0.01727553,3484.7,3483.9,0.4789]
[1754087311986,6.89,3485.6,3483.6,0.4345]
[1754087312186,0.72262976,3485.5,3483.7,0.4789]
[1754087312386,0.1432,3483.9,3483.8,2.87042884]
[1754087312638,6.888,3485.7,3483.8,0.9134]
[1754087312783,0.1432,3484.3,3484.2,2.8700993]
[1754087312991,0.73669,3485.6,3484.2,0.4345]
[1754087313189,6.906,3488.9,3484.2,0.4345]
[1754087313444,1.341068,3487.7,3486.6,2.86805207]
[1754087313647,6.83467553,3488.8,3484.9,2.86944541]
[1754087313648,7.2963,3488.8,3486.5,0.4789]
[1754087313940,0.4789,3488.3,3485.7,0.4345]
[1754087314228,2.86643647,3488.7,3487.2,2.86760689]
[1754087314436,2.86643647,3488.7,3485.8,12.25992398]
[1754087314437,0.01727553,3488.7,3487.3,0.4789]
[1754087314642,6.361,3488.8,3487.7,2.86715573]
[1754087314935,6.906,3488.9,3487.8,0.4789]
[1754087314936,1.34397553,3488.7,3487.8,0.4789]
[1754087315154,0.01727553,3488.7,3487.8,0.4789]
[1754087315429,2.86742007,3487.5,3486.5,0.4345]
[1754087315603,0.01727553,3487.4,3486.3,0.4789]
[1754087315803,0.01727553,3487.4,3485.9,0.4345]
[1754087315804,2.86804783,3486.7,3485.9,0.4345]
[1754087316007,0.55,3487.6,3485.3,0.4345]
[1754087316008,0.01727553,3486.6,3485.3,0.4345]
[1754087316188,7.3269,3486.5,3484.5,0.4345]
[1754087316388,11.36874211,3486.3,3482.4,6.903]
[1754087316588,0.55,3485.8,3483.5,0.4789]
[1754087316930,0.78005755,3486.4,3482.6,0.4345]
[1754087316931,2.8698522,3484.5,3482.6,0.4345]
[1754087317117,0.55,3484.3,3482.2,0.4789]
[1754087317426,8.43456075,3484.4,3481.5,0.4789]
[1754087317427,0.55,3483.9,3481.5,0.4789]
[1754087317626,0.55,3483.7,3481.5,0.4789]
[1754087317816,0.4564,3484.2,3481.6,0.46322242]
[1754087318015,6.827,3484.1,3482.0,2.87189024]
[1754087318216,6.821,3485.2,3482.6,3.0]
[1754087318423,6.9,3486.0,3483.2,7.81874211]
[1754087318593,6.822,3486.7,3485.3,2.86917681]
[1754087318793,6.9,3487.4,3485.4,0.9134]
[1754087318794,6.837,3487.3,3485.4,0.9134]
[1754087319014,6.837,3487.3,3485.6,2.86894652]
[1754087319216,6.835,3488.4,3485.9,3.0]
[1754087319442,0.39525755,3488.5,3486.1,3.0]
[1754087319646,0.39525755,3488.5,3486.8,3.0]
[1754087320009,0.01727553,3488.4,3486.9,0.9134]
[1754087320208,2.86598595,3489.3,3487.9,2.86702833]
[1754087320405,6.834,3489.4,3486.3,6.826]
[1754087320603,2.86666809,3488.4,3487.1,2.86763225]
[1754087320829,2.86615838,3489.0,3486.3,0.0286837]
[1754087321135,0.6834,3489.3,3486.4,0.55]
[1754087321442,0.01727553,3489.2,3486.2,0.55]
[1754087321642,6.821,3489.3,3486.0,0.861525]
[1754087321933,2.86606861,3489.1,3486.0,0.861525]
[1754087322136,0.51347553,3489.0,3487.5,2.86736883]
[1754087322430,6.819,3488.9,3486.7,0.4789]
[1754087322631,0.55,3488.7,3486.7,0.4789]
[1754087322802,0.01727553,3488.6,3486.7,0.4789]
[1754087323195,0.1432,3487.5,3487.0,0.1432]
[1754087323397,2.86672276,3488.4,3487.0,3.3466563]
[1754087323601,1.68584755,3488.8,3487.1,3.78106495]
[1754087323602,0.1432,3487.5,3487.1,3.78106495]
[1754087323930,1.68584755,3488.8,3486.1,2.86845621]
[1754087323931,0.1432,3487.9,3487.5,0.1432]
[1754087324130,0.1432,3487.7,3487.5,2.86735957]
[1754087324312,0.1432,3487.7,3487.2,3.9241568]
[1754087324496,0.1432,3487.7,3487.3,0.9134]
[1754087324896,0.1432,3487.7,3487.4,0.4789]
[1754087325330,0.1432,3487.7,3487.1,0.1432]
[1754087325707,0.01727553,3487.6,3486.1,0.4794]
[1754087325911,0.1432,3486.7,3485.9,0.4697]
[1754087326236,10.13469503,3487.6,3486.2,2.86845275]
[1754087326237,0.1432,3486.3,3486.2,2.86845275]
[1754087326539,6.765,3488.7,3487.2,0.1432]
[1754087326868,6.765,3488.7,3485.7,2.86882071]
[1754087326869,0.1432,3487.3,3486.0,0.4794]
[1754087327147,0.1432,3487.3,3485.9,0.4697]
[1754087327148,0.1432,3486.2,3485.8,2.86870893]
[1754087327650,0.1432,3486.2,3485.2,0.4697]
[1754087327651,0.01727553,3486.9,3485.2,0.9491]
[1754087327807,0.1432,3485.3,3484.7,0.1432]
[1754087328011,2.86828969,3486.4,3485.0,2.86944045]
[1754087328254,0.1432,3485.5,3484.9,3.01269167]
[1754087328450,0.1432,3485.5,3485.2,2.86927091]
[1754087328609,0.1432,3485.5,3485.0,2.86936823]
[1754087328813,0.4811,3486.3,3484.6,0.4794]
[1754087329002,0.01727553,3486.2,3484.6,0.4794]
[1754087329198,0.1432,3485.0,3484.5,3.0129779]
[1754087329419,0.01727553,3485.6,3483.3,3.9526423]
[1754087329618,0.1432,3485.0,3484.6,0.9491]
[1754087329906,0.1432,3485.0,3484.7,0.9491]
[1754087330110,0.1432,3485.0,3484.8,0.9491]
[1754087330325,0.1432,3485.0,3484.5,0.1432]
[1754087330521,3.8175445,3486.3,3485.1,2.86934221]
[1754087330761,0.4811,3487.0,3485.2,0.97779275]
[1754087331053,0.1432,3486.0,3485.5,0.1432]
[1754087331407,0.1432,3486.0,3485.6,2.86894148]
[1754087331608,0.4811,3487.0,3484.7,3.0]
[1754087331805,0.4811,3487.0,3485.7,2.86885098]
[1754087331806,0.01727553,3486.9,3485.7,2.86885098]
[1754087332042,0.1432,3486.0,3485.9,2.86869961]
[1754087332217,0.9491,3487.0,3485.9,0.4794]
[1754087332218,0.4811,3487.0,3485.9,0.4794]
[1754087332416,0.1432,3486.2,3486.1,2.86848642]
[1754087332641,0.1432,3486.5,3486.0,3.0118157]
[1754087332828,0.1432,3486.5,3485.5,3.34834984]
[1754087333032,0.1432,3486.5,3486.4,2.8682882]
[1754087333234,0.468,3488.2,3486.4,1.0923]
[1754087333540,2.86737641,3487.6,3485.9,0.4794]
[1754087333749,0.1432,3486.5,3486.1,2.86847827]
[1754087334058,0.4811,3488.4,3486.4,2.8682882]
[1754087334256,0.01727553,3488.3,3486.8,2.86790471]
[1754087334408,0.1432,3487.3,3487.1,2.86769614]
[1754087334608,0.9491,3487.9,3486.2,3.33813552]
[1754087334818,0.1432,3486.6,3486.2,2.86844442]
[1754087335018,0.1432,3486.6,3485.9,0.4794]
[1754087335219,0.468,3488.3,3486.0,3.49838617]
[1754087335450,0.1432,3487.6,3487.2,2.86763019]
[1754087335610,0.4811,3488.6,3487.3,0.9491]
[1754087335946,0.1432,3487.6,3487.1,0.1432]
[1754087336147,0.1432,3487.4,3486.9,0.1432]
[1754087336351,0.1432,3487.4,3487.0,0.4794]
[1754087336849,0.1432,3487.1,3486.3,0.6129]
[1754087337051,0.01727553,3487.0,3485.9,0.4794]
[1754087337214,0.1432,3487.1,3486.0,0.9491]
[1754087337615,0.01727553,3487.0,3485.5,0.4794]
[1754087337817,0.4811,3487.0,3484.9,7.8421]
[1754087338164,0.01727553,3486.9,3485.0,0.9491]
[1754087338316,0.9491,3486.8,3485.0,0.9491]
[1754087338516,0.9491,3486.8,3485.0,3.81853112]
[1754087338716,0.38169257,3486.7,3485.1,2.86934908]
[1754087338973,0.4811,3487.4,3485.2,0.4794]
[1754087339260,2.86810963,3486.7,3485.2,0.4794]
[1754087339564,0.4811,3488.1,3486.4,2.86827061]
[1754087339759,0.01727553,3488.4,3486.5,0.9491]
[1754087340254,0.9491,3488.3,3486.5,0.9491]
[1754087340454,0.4147,3488.6,3486.6,2.8968049]
[1754087340752,0.4147,3488.6,3486.7,0.9491]
[1754087340958,2.8652789,3490.1,3485.9,9.632]
[1754087340959,0.4811,3489.8,3487.6,2.86729197]
[1754087341180,0.4811,3489.8,3486.8,4.39572251]
[1754087341181,0.4811,3489.8,3487.7,0.9491]
[1754087341314,2.86565795,3489.6,3487.8,0.9491]
[1754087341519,0.48527553,3489.5,3487.8,0.9491]
[1754087341743,0.01727553,3489.5,3487.9,0.9491]
[1754087341970,0.4811,3490.3,3488.0,0.97776972]
[1754087342262,2.86637385,3488.8,3487.7,2.86721278]
[1754087342457,2.86532951,3490.0,3488.1,0.4794]
[1754087342664,0.33333295,3489.9,3488.3,2.86672591]
[1754087342818,2.86605171,3489.2,3488.1,0.4794]
[1754087343013,0.01727553,3489.8,3488.1,0.4794]
[1754087343014,2.88341233,3489.1,3488.1,0.4794]
[1754087343219,0.01727553,3489.1,3488.2,2.86673846]
[1754087343462,0.01727553,3489.3,3488.1,0.4794]
[1754087343642,0.01727553,3489.3,3487.9,0.4697]
[1754087343643,0.01727553,3489.2,3487.9,0.4697]
[1754087343822,0.48527553,3489.1,3487.2,0.4697]
[1754087344020,2.86649249,3488.6,3487.5,2.86733008]
[1754087344335,0.28664925,3488.5,3487.2,0.9491]
[1754087344559,0.4811,3490.4,3488.1,7.81338062]
[1754087344856,0.4811,3490.4,3488.8,2.86625968]
[1754087345057,2.86508323,3490.3,3488.5,3.34593796]
[1754087345371,2.86534442,3490.0,3488.9,2.86616959]